bitfinex/quotes_BTCUSD_20240719
["timestamp","ask_amount","ask_price","bid_price","bid_amount"]
[1721353542831,0.156718,63809.0,63805.0,0.0616]
[1721353543032,0.00815167,63806.0,63805.0,0.0616]
[1721353543281,0.15672,63808.0,63805.0,0.0616]
[1721353543456,0.156749,63796.0,63794.0,0.1413]
[1721353543682,0.00815576,63796.0,63794.0,0.1413]
[1721353544506,0.16490476,63796.0,63794.0,0.1413]
[1721353544906,0.17190476,63796.0,63794.0,0.1413]
[1721353545139,0.16490476,63796.0,63794.0,0.127213]
[1721353545533,0.17090476,63796.0,63794.0,0.127213]
[1721353545735,0.01415576,63796.0,63794.0,0.127213]
[1721353546047,0.17490776,63796.0,63794.0,0.127213]
[1721353546275,0.156752,63795.0,63794.0,0.127213]
[1721353546479,0.01815576,63796.0,63794.0,0.127213]
[1721353546683,0.00815249,63795.0,63794.0,0.127213]
[1721353547935,0.01115249,63795.0,63794.0,0.127213]
[1721353548686,0.16890449,63795.0,63794.0,0.127213]
[1721353550861,0.16890449,63795.0,63794.0,0.128126]
[1721353551696,0.48323849,63795.0,63794.0,0.128126]
[1721353551897,0.47923849,63795.0,63794.0,0.128126]
[1721353552299,0.48023849,63795.0,63794.0,0.128126]
[1721353552941,1.48832823,63795.0,63794.0,0.000913]
[1721353553541,1.49132823,63795.0,63794.0,0.000913]
[1721353553920,1.48832823,63795.0,63794.0,0.000913]
[1721353554171,1.48732823,63795.0,63794.0,0.000913]
[1721353554300,1.49532823,63795.0,63794.0,0.000913]
[1721353554508,1.50132823,63795.0,63794.0,0.000913]
[1721353554716,1.49532823,63795.0,63794.0,0.000913]
[1721353554973,1.48732823,63795.0,63794.0,0.000913]
[1721353555173,1.50132823,63795.0,63794.0,0.000913]
[1721353555742,1.18782423,63795.0,63794.0,0.000913]
[1721353556175,0.17973449,63795.0,63794.0,0.000913]
[1721353556345,0.17973449,63795.0,63794.0,0.138313]
[1721353557862,0.02298249,63795.0,63794.0,0.922085]
[1721353558277,0.01483,63795.0,63794.0,0.922085]
[1721353558865,0.00883,63795.0,63794.0,0.922085]
[1721353559266,0.00983,63795.0,63794.0,0.922085]
[1721353559474,0.00183,63795.0,63794.0,0.922085]
[1721353559946,0.00983,63795.0,63794.0,0.922085]
[1721353560350,0.00183,63795.0,63794.0,0.922085]
[1721353560651,0.00583,63795.0,63794.0,0.922085]
[1721353561626,0.00583,63795.0,63794.0,1.235594]
[1721353563034,0.00583,63795.0,63794.0,1.38997574]
[1721353563639,0.00183,63795.0,63794.0,1.38997574]
[1721353564506,0.00283,63795.0,63794.0,1.38997574]
[1721353568408,0.00283,63795.0,63794.0,1.83367358]
[1721353569431,0.00183,63795.0,63794.0,1.83367358]
[1721353569943,0.00183,63795.0,63794.0,1.83367224]
[1721353570178,0.00283,63795.0,63794.0,1.83367224]
[1721353570664,0.00183,63795.0,63794.0,1.83367224]
[1721353571168,0.00283,63795.0,63794.0,1.83967224]
[1721353571433,0.00283,63795.0,63794.0,1.83367224]
[1721353571681,0.00183,63795.0,63794.0,1.83367224]
[1721353571923,0.00283,63795.0,63794.0,1.84567224]
[1721353573189,0.00283,63795.0,63794.0,1.96867113]
[1721353573458,0.00283,63795.0,63794.0,1.8851117]
[1721353573691,0.00283,63795.0,63794.0,1.96866603]
[1721353573971,0.00283,63795.0,63794.0,1.96866336]
[1721353574222,0.00283,63795.0,63794.0,2.73381466]
[1721353574725,0.00283,63795.0,63794.0,2.31627263]
[1721353574973,0.00283,63795.0,63794.0,2.38620913]
[1721353575228,0.00283,63795.0,63794.0,2.31627263]
[1721353576433,0.00283,63795.0,63794.0,2.31627168]
[1721353576676,0.00283,63795.0,63794.0,2.01531276]
[1721353578364,0.00283,63795.0,63794.0,1.96866241]
[1721353579330,0.00283,63795.0,63794.0,1.83848474]
[1721353579529,0.00283,63795.0,63794.0,1.96866284]
[1721353580298,0.00283,63795.0,63794.0,1.83848474]
[1721353581673,0.00283,63795.0,63794.0,1.96866347]
[1721353582837,0.00283,63795.0,63794.0,1.83848474]
[1721353583702,0.00283,63795.0,63794.0,1.88848474]
[1721353583914,0.00283,63795.0,63794.0,2.01866255]
[1721353584331,0.00283,63795.0,63794.0,1.96866255]
[1721353585346,0.00283,63795.0,63794.0,2.01866255]
[1721353586216,0.00283,63795.0,63794.0,2.33217155]
[1721353586447,0.00283,63795.0,63794.0,2.33216405]
[1721353587579,0.00183,63795.0,63794.0,2.33216405]
[1721353587816,0.00283,63795.0,63794.0,2.34416405]
[1721353588403,0.00183,63795.0,63794.0,2.33216405]
[1721353588609,0.00283,63795.0,63794.0,2.34616405]
[1721353590219,0.00283,63795.0,63794.0,2.34616129]
[1721353590719,0.00283,63795.0,63794.0,2.29616129]
[1721353591411,0.00283,63795.0,63794.0,1.98265229]
[1721353591580,0.00283,63795.0,63794.0,1.64614329]
[1721353591961,0.00283,63795.0,63794.0,1.51597574]
[1721353592172,0.00283,63795.0,63794.0,1.64616312]
[1721353592779,0.00283,63795.0,63794.0,1.98267212]
[1721353593407,0.00283,63795.0,63794.0,1.98266929]
[1721353596786,0.00283,63795.0,63794.0,1.98266873]
[1721353597055,0.00283,63795.0,63794.0,1.48535973]
[1721353597295,0.06653,63795.0,63794.0,0.497176]
[1721353597531,0.14193,63795.0,63794.0,0.497176]
[1721353598002,0.14093,63795.0,63794.0,0.798685]
[1721353598474,0.14193,63795.0,63794.0,0.494176]
[1721353598893,0.13993,63795.0,63794.0,0.471176]
[1721353599364,0.14093,63795.0,63794.0,0.483176]
[1721353599775,0.14093,63795.0,63794.0,0.796685]
[1721353599977,0.00183,63795.0,63794.0,0.796685]
[1721353600187,0.00183,63795.0,63794.0,0.805685]
[1721353600188,0.00283,63795.0,63794.0,0.805685]
[1721353603361,0.08213,63795.0,63794.0,0.492176]
[1721353603543,0.00283,63795.0,63794.0,0.805685]
[1721353606500,0.00283,63795.0,63794.0,1.35657574]
[1721353606714,0.00283,63795.0,63794.0,1.42197574]
[1721353607977,0.02283,63795.0,63794.0,1.42197574]
[1721353609007,0.02283,63795.0,63794.0,1.35657574]
[1721353609427,0.02283,63795.0,63794.0,1.27357574]
[1721353614659,0.02283,63795.0,63794.0,1.41617574]
[1721353615710,0.02283,63795.0,63794.0,1.43917574]
[1721353615948,0.02283,63795.0,63794.0,1.75268474]
[1721353616198,0.02283,63795.0,63794.0,2.24637817]
[1721353616372,0.02283,63795.0,63794.0,1.93286917]
[1721353616576,0.02283,63795.0,63794.0,2.10292841]
[1721353616779,0.02283,63795.0,63794.0,2.76402603]
[1721353617139,0.02283,63795.0,63794.0,2.41643741]
[1721353617266,0.02183,63795.0,63794.0,2.40743741]
[1721353617472,0.46304871,63821.0,63813.0,0.0813]
[1721353617673,0.46304871,63821.0,63820.0,0.470071]
[1721353617876,0.0752,63823.0,63822.0,0.470056]
[1721353619226,0.0752,63823.0,63822.0,0.472056]
[1721353620851,0.0752,63823.0,63822.0,0.785427]
[1721353621049,0.0654,63824.0,63823.0,0.470049]
[1721353621899,0.07357367,63824.0,63823.0,0.470049]
[1721353622215,0.07357367,63824.0,63823.0,0.156683]
[1721353622436,0.07357367,63824.0,63823.0,0.157683]
[1721353622658,0.07357367,63824.0,63823.0,0.471049]
[1721353622834,0.0654,63824.0,63823.0,0.471049]
[1721353623919,0.0664,63824.0,63823.0,0.471049]
[1721353626967,0.001,63824.0,63823.0,1.097781]
[1721353627167,0.001,63824.0,63823.0,1.177081]
[1721353627847,0.1483,63832.0,63831.0,0.156663]
[1721353629056,0.1513,63832.0,63831.0,0.156663]
[1721353630545,0.1513,63832.0,63831.0,0.46999]
[1721353631751,0.1513,63832.0,63831.0,0.156663]
[1721353634544,0.1513,63832.0,63829.0,0.156667]
[1721353634746,0.1513,63832.0,63828.0,0.313339]
[1721353635616,0.1513,63832.0,63831.0,0.156663]
[1721353636435,0.1483,63832.0,63831.0,0.156663]
[1721353636832,0.15950528,63832.0,63831.0,0.156663]
[1721353637235,0.15650528,63832.0,63831.0,0.156663]
[1721353637862,0.15950528,63832.0,63831.0,0.156663]
[1721353638085,0.07700528,63832.0,63831.0,0.156663]
[1721353638498,0.01120528,63832.0,63831.0,1.096644]
[1721353638687,0.01120528,63832.0,63831.0,1.175644]
[1721353638866,0.003,63832.0,63831.0,1.175644]
[1721353640622,0.003,63832.0,63831.0,0.783317]
[1721353646504,0.00383,63832.0,63831.0,0.783317]
[1721353649008,0.0306332,63832.0,63831.0,0.156663]
[1721353649208,0.06778831,63832.0,63830.0,0.156664]
[1721353649573,0.01206448,63832.0,63830.0,0.156664]
[1721353649773,0.01206448,63832.0,63831.0,0.156663]
[1721353650212,0.06358718,63832.0,63831.0,0.156663]
[1721353650616,0.06663527,63832.0,63831.0,0.156663]
[1721353650969,0.06363527,63832.0,63831.0,0.156663]
[1721353651376,0.06663527,63832.0,63831.0,0.156663]
[1721353653490,0.0405484,63832.0,63831.0,0.156663]
[1721353653731,0.06619413,63832.0,63831.0,0.156663]
[1721353653931,0.066131,63832.0,63831.0,0.156663]
[1721353654985,0.1459,63831.0,63827.0,0.313343]
[1721353655185,0.02842079,63830.0,63827.0,0.156672]
[1721353655338,0.02842079,63830.0,63828.0,0.15667]
[1721353655521,0.02842079,63830.0,63829.0,0.156668]
[1721353655724,0.05393839,63830.0,63829.0,0.156668]
[1721353657797,0.05493839,63830.0,63829.0,0.470005]
[1721353657998,0.05493839,63830.0,63829.0,0.844342]
[1721353657999,0.001,63830.0,63829.0,0.844342]
[1721353659020,0.001,63830.0,63829.0,0.784342]
[1721353661295,0.001,63830.0,63829.0,1.39476074]
[1721353661498,0.001,63830.0,63829.0,2.5512632]
[1721353661701,0.001,63830.0,63829.0,3.01524649]
[1721353661902,0.001,63830.0,63829.0,2.89865398]
[1721353662287,0.001,63830.0,63829.0,2.89765398]
[1721353662523,0.00083,63832.0,63831.0,1.773298]
[1721353662724,0.00301908,63849.0,63847.0,0.296024]
[1721353662899,0.00301908,63849.0,63847.0,1.07690174]
[1721353663053,0.00301908,63849.0,63847.0,1.39014974]
[1721353665232,0.00301908,63849.0,63847.0,1.40314974]
[1721353665934,0.00183,63848.0,63847.0,1.41414974]
[1721353667984,0.00183,63848.0,63847.0,1.72739774]
[1721353668142,0.00183,63848.0,63847.0,1.85039774]
[1721353668354,0.00183,63848.0,63847.0,1.90039774]
[1721353668555,0.00183,63848.0,63847.0,1.85039774]
[1721353669576,0.00183,63848.0,63847.0,1.8595677]
[1721353669781,0.00183,63848.0,63847.0,1.9095677]
[1721353670294,0.00183,63848.0,63847.0,1.8595677]
[1721353675902,0.00183,63848.0,63847.0,1.9095677]
[1721353676482,0.00183,63848.0,63847.0,2.2228157]
[1721353677297,0.00183,63848.0,63847.0,1.8595677]
[1721353686461,0.00183,63848.0,63847.0,1.8365677]
[1721353687344,0.00183,63848.0,63847.0,1.7727677]
[1721353687559,0.00183,63848.0,63847.0,0.180624]
[1721353687771,0.08393,63848.0,63847.0,0.180624]
[1721353687972,0.08393,63848.0,63847.0,0.493872]
[1721353688182,0.09921454,63848.0,63847.0,0.493872]
[1721353688308,0.08393,63848.0,63847.0,0.493872]
[1721353688512,0.00183,63848.0,63847.0,1.27474974]
[1721353688746,0.00183,63848.0,63847.0,1.40514974]
[1721353688747,0.00083,63848.0,63847.0,1.40514974]
[1721353688948,0.00083,63848.0,63847.0,1.74139774]
[1721353689097,0.00083,63848.0,63847.0,1.86347383]
[1721353689297,0.00083,63848.0,63847.0,1.97047383]
[1721353689521,0.00083,63848.0,63847.0,1.96547383]
[1721353689748,0.00083,63848.0,63847.0,1.95847383]
[1721353689957,0.00083,63848.0,63847.0,1.97147383]
[1721353690356,0.00083,63848.0,63847.0,1.95847383]
[1721353691148,0.00183,63848.0,63847.0,1.96947383]
[1721353691703,0.00183,63848.0,63847.0,1.98347383]
[1721353691835,0.00083,63848.0,63847.0,1.97247383]
[1721353692051,0.00183,63848.0,63847.0,1.85639774]
[1721353692230,0.00183,63848.0,63847.0,1.98647332]
[1721353692628,0.00183,63848.0,63847.0,1.96347332]
[1721353693930,0.00183,63848.0,63847.0,2.34972132]
[1721353694141,0.00301908,63849.0,63847.0,2.34972132]
[1721353694142,0.00301908,63849.0,63848.0,1.412387]
[1721353694351,0.00301908,63849.0,63848.0,2.46203742]
[1721353694553,0.00301908,63849.0,63848.0,2.48070745]
[1721353694975,0.00301908,63849.0,63848.0,2.25400745]
[1721353695177,0.00301908,63849.0,63848.0,2.04021512]
[1721353695461,0.00401908,63849.0,63848.0,1.99104033]
[1721353697477,0.00401908,63849.0,63848.0,2.04104033]
[1721353697829,0.00401908,63849.0,63848.0,1.99104033]
[1721353698214,0.00401908,63849.0,63848.0,1.86097474]
[1721353698419,0.00401908,63849.0,63848.0,1.99103696]
[1721353699027,0.00401908,63849.0,63848.0,2.04103696]
[1721353699241,0.00401908,63849.0,63848.0,2.58097996]
[1721353700537,0.00401908,63849.0,63848.0,2.59033448]
[1721353701534,8e-08,63849.0,63848.0,2.59033359]
[1721353701846,8e-08,63849.0,63848.0,2.83184786]
[1721353702572,8e-08,63849.0,63848.0,2.85505901]
[1721353703532,8e-08,63849.0,63848.0,2.93761997]
[1721353703725,8e-08,63849.0,63848.0,3.13271196]
[1721353704128,8e-08,63849.0,63848.0,3.12428418]
[1721353704361,8e-08,63849.0,63848.0,2.41027226]
[1721353704565,8e-08,63849.0,63848.0,2.95735862]
[1721353704854,8e-08,63849.0,63848.0,2.31363567]
[1721353705052,8e-08,63849.0,63848.0,1.83139267]
[1721353706409,8e-08,63849.0,63848.0,1.99729267]
[1721353706652,8e-08,63849.0,63848.0,2.41450943]
[1721353706839,8e-08,63849.0,63848.0,2.3446106]
[1721353707260,8e-08,63849.0,63848.0,1.51814967]
[1721353707261,0.06510008,63849.0,63848.0,1.51814967]
[1721353707458,0.06510008,63849.0,63848.0,0.95052493]
[1721353707680,0.06510008,63849.0,63848.0,0.82046152]
[1721353707885,0.06510008,63849.0,63848.0,1.12435]
[1721353708088,8e-08,63849.0,63848.0,1.12435]
[1721353708504,0.0619,63853.0,63852.0,0.78306]
[1721353708720,0.0619,63857.0,63856.0,0.78301]
[1721353708910,0.0906307,63859.0,63858.0,0.469791]
[1721353709147,0.0089307,63859.0,63858.0,1.25056074]
[1721353710909,0.0089307,63859.0,63858.0,1.25556074]
[1721353711135,0.0089307,63859.0,63858.0,1.101179]
[1721353711348,0.0703307,63859.0,63858.0,0.782985]
[1721353711751,0.0703307,63859.0,63858.0,0.789985]
[1721353712132,0.0703307,63859.0,63858.0,0.796985]
[1721353712360,0.0703307,63859.0,63858.0,1.25756074]
[1721353712764,0.0703307,63859.0,63858.0,1.26456074]
[1721353712964,0.0703307,63859.0,63858.0,1.25056074]
[1721353713166,0.0089307,63859.0,63858.0,1.25556074]
[1721353713347,0.0089307,63859.0,63858.0,1.26556074]
[1721353713768,0.0089307,63859.0,63858.0,1.26056074]
[1721353714017,0.0089307,63859.0,63858.0,1.26756074]
[1721353714134,0.0089307,63859.0,63858.0,0.95436674]
[1721353714526,0.0089307,63859.0,63858.0,1.26756074]
[1721353717015,0.0089307,63859.0,63858.0,1.45696074]
[1721353717250,0.0089307,63859.0,63858.0,1.58702313]
[1721353717454,0.0089307,63859.0,63858.0,1.90021713]
[1721353717656,0.0089307,63859.0,63858.0,1.58702313]
[1721353718101,0.0089307,63859.0,63858.0,1.49762313]
[1721353718480,0.0089307,63859.0,63858.0,1.49762126]
[1721353720251,0.0089307,63859.0,63858.0,1.36756074]
[1721353720428,0.0089307,63859.0,63858.0,1.49762201]
[1721353726555,0.0089307,63859.0,63858.0,1.49762162]
[1721353726761,0.0089307,63859.0,63858.0,2.26790962]
[1721353726994,0.0089307,63859.0,63858.0,2.29090962]
[1721353727182,0.0089307,63859.0,63858.0,1.97771562]
[1721353727558,0.0089307,63859.0,63858.0,2.0243023]
[1721353728384,0.0089307,63859.0,63858.0,2.0173023]
[1721353728784,0.0089307,63859.0,63858.0,2.0143023]
[1721353728995,0.0089307,63859.0,63858.0,2.40467109]
[1721353729187,0.0089307,63859.0,63858.0,2.08447709]
[1721353729414,0.0089307,63859.0,63858.0,2.09447709]
[1721353729620,0.0089307,63859.0,63858.0,1.96841621]
[1721353729775,0.0089307,63859.0,63858.0,2.05187338]
[1721353729971,0.0089307,63859.0,63858.0,2.06587338]
[1721353730178,0.0089307,63859.0,63858.0,2.4829779]
[1721353730509,0.0089307,63859.0,63858.0,2.53295357]
[1721353730708,0.0089307,63859.0,63858.0,2.84614757]
[1721353730915,0.0089307,63859.0,63858.0,2.79614757]
[1721353731382,0.0089307,63859.0,63858.0,2.85507857]
[1721353731606,0.0089307,63859.0,63858.0,2.80507857]
[1721353731788,0.0089307,63859.0,63858.0,1.98362959]
[1721353732138,0.0089307,63859.0,63858.0,2.03014862]
[1721353732743,0.0089307,63859.0,63858.0,1.90010477]
[1721353732924,0.0089307,63859.0,63858.0,2.0441378]
[1721353733170,7e-07,63859.0,63858.0,2.28281788]
[1721353733567,7e-07,63859.0,63858.0,2.37931998]
[1721353733736,7e-07,63859.0,63858.0,2.36081788]
[1721353734096,7e-07,63859.0,63858.0,2.34681788]
[1721353734566,7e-07,63859.0,63858.0,2.36081788]
[1721353735552,7e-07,63859.0,63858.0,2.34681788]
[1721353735758,7e-07,63859.0,63858.0,2.36081788]
[1721353737444,7e-07,63859.0,63858.0,2.40727169]
[1721353739038,7e-07,63859.0,63858.0,2.27723355]
[1721353739239,7e-07,63859.0,63858.0,2.40725193]
[1721353740760,7e-07,63859.0,63858.0,2.35725193]
[1721353741160,7e-07,63859.0,63858.0,2.04405793]
[1721353741373,7e-07,63859.0,63858.0,1.87582203]
[1721353742021,7e-07,63859.0,63858.0,2.18008503]
[1721353742221,7e-07,63859.0,63858.0,2.1800914]
[1721353742422,7e-07,63859.0,63858.0,1.8388974]
[1721353742675,7e-07,63859.0,63858.0,2.2030914]
[1721353742993,7e-07,63859.0,63858.0,1.8077974]
[1721353743203,7e-07,63859.0,63858.0,1.56375474]
[1721353743377,7e-07,63859.0,63858.0,1.59175474]
[1721353743619,7e-07,63859.0,63858.0,1.57775474]
[1721353744024,7e-07,63859.0,63858.0,1.59175474]
[1721353744203,7e-07,63859.0,63858.0,1.57775474]
[1721353744416,7e-07,63859.0,63858.0,1.70075474]
[1721353744634,7e-07,63859.0,63858.0,1.68675474]
[1721353745009,7e-07,63859.0,63858.0,1.70075474]
[1721353745407,7e-07,63859.0,63858.0,1.35056074]
[1721353745611,7e-07,63859.0,63858.0,0.782985]
[1721353745612,0.1445007,63859.0,63858.0,0.782985]
[1721353745813,0.1445007,63859.0,63858.0,0.810985]
[1721353746170,0.1445007,63859.0,63858.0,0.796985]
[1721353746439,0.1445007,63859.0,63858.0,0.782985]
[1721353746997,0.1445007,63859.0,63858.0,0.796985]
[1721353747173,7e-07,63859.0,63858.0,1.32586074]
[1721353747371,7e-07,63859.0,63858.0,1.46286074]
[1721353747575,7e-07,63859.0,63858.0,1.46786074]
[1721353747777,7e-07,63859.0,63858.0,1.36456074]
[1721353747973,0.0779007,63859.0,63858.0,1.36456074]
[1721353748181,7e-07,63859.0,63858.0,1.36456074]
[1721353748395,0.0664007,63859.0,63858.0,1.36456074]
[1721353748598,0.0664007,63859.0,63858.0,1.35056074]
[1721353749019,0.0664007,63859.0,63858.0,1.35256074]
[1721353749222,0.0664007,63859.0,63858.0,1.35756074]
[1721353749377,7e-07,63859.0,63858.0,1.35056074]
[1721353749784,7e-07,63859.0,63858.0,1.37156074]
[1721353749983,7e-07,63859.0,63858.0,1.35956074]
[1721353750228,7e-07,63859.0,63858.0,1.35056074]
[1721353750367,7e-07,63859.0,63858.0,1.36556074]
[1721353750810,7e-07,63859.0,63858.0,1.35756074]
[1721353750984,7e-07,63859.0,63858.0,1.36956074]
[1721353751586,7e-07,63859.0,63858.0,1.74875474]
[1721353751790,7e-07,63859.0,63858.0,1.50566074]
[1721353752425,7e-07,63859.0,63858.0,1.50266074]
[1721353752785,7e-07,63859.0,63858.0,1.51266074]
[1721353752982,7e-07,63859.0,63858.0,1.50266074]
[1721353753506,7e-07,63859.0,63858.0,1.51466074]
[1721353753706,7e-07,63859.0,63858.0,1.52395502]
[1721353754083,7e-07,63859.0,63858.0,1.83714902]
[1721353755291,7e-07,63859.0,63858.0,1.45795502]
[1721353756302,7e-07,63859.0,63858.0,1.61100797]
[1721353756682,7e-07,63859.0,63858.0,1.92420197]
[1721353758024,7e-07,63859.0,63858.0,1.79414902]
[1721353758230,7e-07,63859.0,63858.0,1.92419925]
[1721353761358,7e-07,63859.0,63858.0,1.61100707]
[1721353761776,7e-07,63859.0,63858.0,1.53390707]
[1721353762455,7e-07,63859.0,63858.0,1.84710107]
[1721353762831,7e-07,63859.0,63858.0,1.53390707]
[1721353763438,7e-07,63859.0,63858.0,1.84710391]
[1721353764103,7e-07,63859.0,63858.0,1.92890391]
[1721353764361,7e-07,63859.0,63858.0,1.99270328]
[1721353764765,7e-07,63859.0,63858.0,1.99270321]
[1721353765141,7e-07,63859.0,63858.0,1.92890321]
[1721353767809,7e-07,63859.0,63858.0,1.9289036]
[1721353770726,7e-07,63859.0,63858.0,1.79884902]
[1721353770925,7e-07,63859.0,63858.0,1.92890347]
[1721353774839,7e-07,63859.0,63858.0,1.92981647]
[1721353776353,7e-07,63859.0,63858.0,1.84801647]
[1721353777301,7e-07,63859.0,63858.0,1.84801722]
[1721353780623,7e-07,63859.0,63858.0,1.84802263]
[1721353783816,7e-07,63859.0,63858.0,1.84801907]
[1721353783973,7e-07,63859.0,63858.0,2.34881307]
[1721353784182,7e-07,63859.0,63858.0,2.78912472]
[1721353784435,7e-07,63859.0,63858.0,2.87962472]
[1721353784562,7e-07,63859.0,63858.0,2.80520485]
[1721353784766,7e-07,63859.0,63858.0,2.78420485]
[1721353785190,7e-07,63859.0,63858.0,2.80520485]
[1721353785392,7e-07,63859.0,63858.0,2.87957284]
[1721353785593,7e-07,63859.0,63858.0,2.77756275]
[1721353785792,7e-07,63859.0,63858.0,2.87058377]
[1721353786240,7e-07,63859.0,63858.0,3.00628377]
[1721353786652,7e-07,63859.0,63858.0,2.99428377]
[1721353786847,7e-07,63859.0,63858.0,2.9152279]
[1721353787053,7e-07,63859.0,63858.0,3.00825003]
[1721353787654,7e-07,63859.0,63858.0,3.02225003]
[1721353788875,0.002,63869.0,63868.0,1.72210708]
[1721353789041,0.002,63869.0,63868.0,2.54732544]
[1721353789961,0.002,63869.0,63868.0,2.41728882]
[1721353790164,0.002,63869.0,63868.0,2.54730921]
[1721353790369,0.002,63869.0,63868.0,2.23062404]
[1721353790551,0.002,63869.0,63868.0,2.18416421]
[1721353790752,0.002,63869.0,63868.0,2.19816421]
[1721353791152,0.002,63869.0,63868.0,2.51130921]
[1721353791348,0.002,63869.0,63868.0,2.49730921]
[1721353791894,0.002,63869.0,63868.0,2.51130921]
[1721353792223,0.002,63869.0,63868.0,2.52530921]
[1721353792449,0.002,63869.0,63868.0,2.49730921]
[1721353792827,0.002,63869.0,63868.0,2.51130921]
[1721353793169,0.002,63869.0,63868.0,2.38128882]
[1721353793390,0.002,63869.0,63868.0,2.51131356]
[1721353793824,0.002,63869.0,63868.0,2.52531356]
[1721353794208,0.002,63869.0,63868.0,2.51131356]
[1721353794414,0.002,63869.0,63868.0,2.49731356]
[1721353794671,0.002,63869.0,63868.0,2.52531356]
[1721353794900,0.002,63869.0,63868.0,2.51131356]
[1721353795101,0.002,63869.0,63868.0,2.60777622]
[1721353795306,0.002,63869.0,63868.0,2.57531356]
[1721353795478,0.002,63869.0,63868.0,2.62174078]
[1721353795682,0.002,63869.0,63868.0,2.55774078]
[1721353795836,0.002,63869.0,63868.0,2.60774078]
[1721353796038,0.002,63869.0,63868.0,2.62174078]
[1721353796440,0.002,63869.0,63868.0,2.63122623]
[1721353796760,0.002,63869.0,63868.0,2.50120317]
[1721353796962,0.002,63869.0,63868.0,2.61721724]
[1721353797325,0.002,63869.0,63868.0,2.57079365]
[1721353797732,0.002,63869.0,63868.0,2.58479365]
[1721353798096,0.00834,63872.0,63871.0,1.80542]
[1721353798251,0.00834,63872.0,63871.0,2.21281567]
[1721353800280,0.00834,63872.0,63871.0,2.32701567]
[1721353800652,0.00834,63872.0,63871.0,2.34101567]
[1721353800860,0.00834,63872.0,63871.0,2.35501567]
[1721353801065,0.00834,63876.0,63872.0,2.085319]
[1721353801315,0.00834,63876.0,63872.0,2.71848346]
[1721353801534,0.00833,63885.0,63884.0,0.782667]
[1721353801729,0.00833,63885.0,63884.0,2.03388274]
[1721353801988,0.00833,63885.0,63884.0,2.36994974]
[1721353804093,0.00833,63885.0,63884.0,2.38394974]
[1721353805029,0.00833,63885.0,63884.0,2.39794974]
[1721353806170,0.00833,63885.0,63884.0,2.5779409]
[1721353807015,0.00833,63885.0,63884.0,2.5639409]
[1721353807217,0.00833,63885.0,63884.0,2.5779409]
[1721353807618,0.00833,63885.0,63884.0,2.5499409]
[1721353808077,0.01613,63885.0,63884.0,2.1572409]
[1721353808272,0.01613,63885.0,63884.0,1.83957367]
[1721353808473,0.01613,63885.0,63884.0,1.82557367]
[1721353808674,0.01613,63885.0,63884.0,1.83957367]
[1721353809095,0.01613,63885.0,63884.0,1.70958251]
[1721353810031,0.01613,63885.0,63884.0,2.15264175]
[1721353811526,0.01613,63885.0,63884.0,1.83957475]
[1721353811731,0.01613,63885.0,63884.0,1.85357475]
[1721353812085,0.01613,63885.0,63884.0,2.03664951]
[1721353812295,0.01613,63885.0,63884.0,2.15264092]
[1721353812497,0.01613,63885.0,63884.0,2.53584092]
[1721353812698,0.01613,63885.0,63884.0,2.58584092]
[1721353813352,0.01613,63885.0,63884.0,2.53584092]
[1721353813720,0.01613,63885.0,63884.0,2.58584092]
[1721353814515,0.01613,63885.0,63884.0,2.57184092]
[1721353815338,0.01613,63885.0,63884.0,2.58583447]
[1721353815980,0.01613,63885.0,63884.0,2.57183447]
[1721353816186,0.01613,63885.0,63884.0,2.58583447]
[1721353816816,0.01613,63885.0,63884.0,2.55196447]
[1721353817019,0.01613,63885.0,63884.0,2.58796447]
[1721353817243,0.01613,63885.0,63884.0,2.60196447]
[1721353817681,0.01594158,63885.0,63884.0,2.60196447]
[1721353818092,0.01594158,63885.0,63884.0,2.55196447]
[1721353818311,0.01594158,63885.0,63884.0,2.26366447]
[1721353818521,0.01594158,63885.0,63884.0,2.18276318]
[1721353819506,0.01594158,63885.0,63884.0,2.16876318]
[1721353820106,0.01594158,63885.0,63884.0,2.15476318]
[1721353820499,0.01594158,63885.0,63884.0,2.16876318]
[1721353820901,0.01594158,63885.0,63884.0,2.18276318]
[1721353821387,0.01594158,63885.0,63884.0,2.16876318]
[1721353821523,0.01594158,63885.0,63884.0,2.15476318]
[1721353821726,0.01594158,63885.0,63884.0,2.18276318]
[1721353822720,0.01594158,63885.0,63884.0,2.21876318]
[1721353822891,0.01594158,63885.0,63884.0,2.59426318]
[1721353823503,0.01594158,63885.0,63884.0,2.58026318]
[1721353823932,0.01594158,63885.0,63884.0,2.59426318]
[1721353824166,0.01594158,63885.0,63884.0,2.56626318]
[1721353824484,0.01594158,63885.0,63884.0,2.59426318]
[1721353824817,0.01594158,63885.0,63884.0,2.58026318]
[1721353825018,0.01594158,63885.0,63884.0,2.5942625]
[1721353825238,0.01594158,63885.0,63884.0,2.5802625]
[1721353825437,0.01594158,63885.0,63884.0,2.5662625]
[1721353825637,0.01594158,63885.0,63884.0,2.5802625]
[1721353825858,0.00833,63887.0,63886.0,1.771813]
[1721353826103,0.00833,63887.0,63886.0,2.17917773]
[1721353826487,0.00833,63887.0,63886.0,2.25457773]
[1721353826688,0.00833,63887.0,63886.0,2.31887773]
[1721353827645,0.00833,63887.0,63886.0,2.33287773]
[1721353828231,4e-07,63892.0,63891.0,0.1907]
[1721353828434,1.4e-07,63896.0,63895.0,0.05]
[1721353828633,1.4e-07,63896.0,63895.0,1.91195194]
[1721353828875,1.4e-07,63896.0,63895.0,2.34359622]
[1721353829080,1.4e-07,63896.0,63895.0,2.81848001]
[1721353829279,1.4e-07,63896.0,63895.0,2.68119031]
[1721353829600,1.4e-07,63896.0,63895.0,2.63484873]
[1721353830549,1.4e-07,63896.0,63895.0,2.64884873]
[1721353830746,1.4e-07,63896.0,63895.0,2.63484873]
[1721353831172,1.4e-07,63896.0,63895.0,2.64884873]
[1721353831614,0.07093,63913.0,63908.0,1.40827]
[1721353831814,0.07093,63913.0,63908.0,1.81563473]
[1721353833610,0.07093,63913.0,63908.0,1.82963473]
[1721353833810,0.07093,63913.0,63908.0,1.84363473]
[1721353835232,0.07093,63913.0,63908.0,1.82963473]
[1721353835493,0.1473,63909.0,63908.0,1.36370274]
[1721353836589,0.1473,63909.0,63908.0,1.37770274]
[1721353837110,0.1473,63909.0,63908.0,1.223321]